bitfinex-derivatives/quotes_BTCF0:USTF0_20240814
["timestamp","ask_amount","ask_price","bid_price","bid_amount"]
[1723657669411,0.3608,59250.0,59249.0,0.168744]
[1723657669611,0.05006179,59256.0,59253.0,0.168732]
[1723657669913,0.06674905,59260.0,59253.0,0.168732]
[1723657669914,0.3608,59262.0,59261.0,0.084355]
[1723657670308,0.6144976,59262.0,59261.0,0.084355]
[1723657670808,0.79175622,59262.0,59261.0,0.05229151]
[1723657671008,0.71570041,59262.0,59261.0,0.05229151]
[1723657671408,0.71570041,59262.0,59261.0,0.06219832]
[1723657672006,0.79179709,59262.0,59261.0,0.06219832]
[1723657672209,0.67440887,59262.0,59261.0,0.06219832]
[1723657672509,0.79182368,59262.0,59261.0,0.06219832]
[1723657672909,0.79682368,59262.0,59261.0,0.06319832]
[1723657673105,0.72069936,59262.0,59261.0,0.06319832]
[1723657674007,0.72069634,59262.0,59261.0,0.06319832]
[1723657675912,0.72569759,59262.0,59261.0,0.06419832]
[1723657677717,0.6244976,59262.0,59261.0,0.06419832]
[1723657679616,0.6244976,59262.0,59261.0,0.23419832]
[1723657680114,0.6244976,59262.0,59261.0,0.06419832]
[1723657680612,0.6244976,59262.0,59261.0,0.002]
[1723657680818,0.6244976,59262.0,59256.0,0.00025321]
[1723657680819,1.87339227,59262.0,59256.0,0.00025321]
[1723657681117,0.3608,59257.0,59256.0,0.00025321]
[1723657681418,0.445159,59257.0,59256.0,0.00025321]
[1723657681610,0.69684149,59257.0,59256.0,0.00025321]
[1723657682319,0.084365,59254.0,59249.0,0.084371]
[1723657682521,0.3608,59250.0,59249.0,0.084371]
[1723657683022,0.61260476,59250.0,59249.0,0.084371]
[1723657683510,0.61260476,59250.0,59249.0,0.087371]
[1723657685312,0.61260476,59250.0,59249.0,1.192662]
[1723657685623,0.61260476,59250.0,59249.0,1.786462]
[1723657686219,0.61260476,59250.0,59249.0,1.789462]
[1723657686424,0.61260476,59250.0,59249.0,1.389462]
[1723657687129,0.22889027,59250.0,59249.0,2.30137927]
[1723657687419,0.00025321,59255.0,59254.0,0.168728]
[1723657687623,0.00025321,59255.0,59254.0,0.318728]
[1723657687811,0.2526391,59255.0,59254.0,1.29177925]
[1723657688319,0.2526391,59255.0,59254.0,1.225008]
[1723657688517,0.2526391,59255.0,59254.0,1.585808]
[1723657688921,0.2526391,59255.0,59254.0,0.234364]
[1723657689611,0.2526391,59255.0,59254.0,0.698528]
[1723657689921,0.2526391,59255.0,59254.0,1.604808]
[1723657690115,0.2526391,59255.0,59254.0,1.61432018]
[1723657690116,0.21984936,59255.0,59254.0,1.61432018]
[1723657690816,0.22284936,59255.0,59254.0,1.61432018]
[1723657691216,0.22284936,59255.0,59254.0,1.62260454]
[1723657692219,0.22284936,59255.0,59254.0,1.12995618]
[1723657692411,0.22284936,59255.0,59254.0,0.09387618]
[1723657692612,0.22284936,59255.0,59254.0,0.00012457]
[1723657692613,0.73797866,59255.0,59254.0,0.00012457]
[1723657692820,0.73797866,59255.0,59254.0,0.084364]
[1723657693020,0.73797866,59255.0,59244.0,0.00025321]
[1723657693216,0.16802472,59246.0,59245.0,0.084376]
[1723657693417,0.1543293,59246.0,59245.0,0.244376]
[1723657693614,0.37023805,59246.0,59245.0,0.328753]
[1723657693924,0.50001753,59246.0,59245.0,0.328753]
[1723657694125,0.41823971,59246.0,59245.0,1.31949]
[1723657694316,0.15602624,59247.0,59246.0,0.759485]
[1723657694521,0.15602624,59249.0,59248.0,0.253116]
[1723657694722,0.25446831,59254.0,59248.0,0.615172]
[1723657695018,0.25446831,59254.0,59253.0,0.16873]
[1723657695220,0.004,59255.0,59254.0,0.168728]
[1723657695415,0.001,59255.0,59254.0,1.566208]
[1723657695609,0.43652801,59262.0,59261.0,0.084354]
[1723657695814,0.07572801,59266.0,59261.0,0.21888579]
[1723657696121,0.25292144,59262.0,59261.0,0.21888579]
[1723657696317,0.25292144,59266.0,59261.0,0.17]
[1723657696318,0.07240641,59264.0,59261.0,0.17]
[1723657696523,0.25379403,59264.0,59261.0,0.17]
[1723657696725,0.25379403,59264.0,59263.0,0.08435]
[1723657697022,0.32620044,59266.0,59265.0,0.084347]
[1723657697618,0.07240641,59266.0,59265.0,0.084347]
[1723657697924,0.32419216,59266.0,59265.0,0.084347]
[1723657699024,0.37594554,59266.0,59265.0,0.084347]
[1723657699928,0.38194554,59266.0,59265.0,0.085347]
[1723657700425,0.38194554,59266.0,59265.0,0.086347]
[1723657700426,0.38694554,59266.0,59265.0,0.086347]
[1723657700813,0.31326124,59266.0,59265.0,0.0961645]
[1723657701226,0.26278575,59266.0,59265.0,0.0961645]
[1723657701625,0.26278575,59266.0,59265.0,0.086347]
[1723657701923,0.77523241,59266.0,59265.0,0.002]
[1723657702121,1.21413175,59266.0,59265.0,0.002]
[1723657702423,1.61413175,59266.0,59265.0,0.002]
[1723657702724,0.084356,59259.0,59258.0,0.320596]
[1723657703020,0.49563804,59259.0,59258.0,0.320596]
[1723657703229,0.74869578,59259.0,59258.0,0.320596]
[1723657703616,0.74869578,59259.0,59258.0,0.084356]
[1723657703817,0.084359,59257.0,59256.0,0.00025321]
[1723657704028,0.445159,59257.0,59256.0,0.00025321]
[1723657704221,1.20423971,59257.0,59256.0,0.00025321]
[1723657704522,0.084368,59251.0,59249.0,0.084369]
[1723657704714,0.15169014,59251.0,59250.0,0.084369]
[1723657704920,0.3608,59251.0,59250.0,0.084369]
[1723657705116,0.61237351,59251.0,59250.0,0.084369]
[1723657705320,0.67968003,59251.0,59250.0,0.084369]
[1723657705529,0.61237351,59251.0,59250.0,0.084369]
[1723657706224,0.69674051,59251.0,59250.0,0.084369]
[1723657706615,0.70624668,59251.0,59250.0,0.085369]
[1723657707329,0.88804668,59251.0,59250.0,0.085369]
[1723657707522,0.80367968,59251.0,59250.0,0.085369]
[1723657707828,0.73803601,59251.0,59250.0,0.084369]
[1723657708219,0.73803601,59251.0,59250.0,0.168738]
[1723657708529,0.9230007,59251.0,59250.0,0.084369]
[1723657708723,0.73803601,59251.0,59250.0,0.084369]
[1723657709029,0.76538125,59251.0,59250.0,0.084369]
[1723657709330,0.95034594,59251.0,59250.0,0.168738]
[1723657709529,0.95034594,59251.0,59250.0,0.085369]
[1723657709721,0.95034594,59251.0,59250.0,0.09521851]
[1723657709722,0.76538125,59251.0,59250.0,0.09521851]
[1723657712230,0.76536934,59251.0,59250.0,0.09521851]
[1723657714026,1.27168934,59251.0,59250.0,0.001]
[1723657714227,1.42540687,59251.0,59250.0,0.001]
[1723657714831,1.34103987,59251.0,59250.0,0.085369]
[1723657715040,0.83471987,59251.0,59250.0,0.085369]
[1723657715334,0.76536934,59251.0,59250.0,0.085369]
[1723657715533,0.76536934,59251.0,59250.0,0.235369]
[1723657715731,0.61237351,59251.0,59250.0,0.235369]
[1723657716139,0.61237351,59251.0,59250.0,0.085369]
[1723657717737,0.61237351,59251.0,59250.0,0.225369]
[1723657719535,0.48313752,59251.0,59250.0,1.216058]
[1723657720136,0.48313752,59251.0,59250.0,0.86619679]
[1723657720338,0.48313752,59251.0,59250.0,1.26619679]
[1723657720533,0.48313752,59251.0,59250.0,0.816058]
[1723657720733,0.48313752,59251.0,59250.0,1.216058]
[1723657721135,0.48313752,59251.0,59250.0,1.26619679]
[1723657721640,0.48313752,59251.0,59250.0,0.86619679]
[1723657722341,0.48313752,59251.0,59250.0,1.26619679]
[1723657722733,0.48313752,59251.0,59250.0,0.085369]
[1723657723236,0.48313752,59251.0,59250.0,0.169738]
[1723657723642,0.48313752,59251.0,59250.0,0.309738]
[1723657723938,0.48313752,59251.0,59250.0,0.816058]
[1723657724134,0.48313752,59251.0,59250.0,0.309738]
[1723657724335,0.4677533,59251.0,59250.0,0.816058]
[1723657724543,0.44226042,59251.0,59250.0,0.309738]
[1723657727347,0.44226042,59251.0,59250.0,0.546018]
[1723657727745,0.41065942,59251.0,59250.0,0.546018]
[1723657728341,0.41065942,59251.0,59250.0,0.59615679]
[1723657729149,0.41065942,59251.0,59250.0,0.546018]
[1723657729349,0.41065942,59251.0,59250.0,0.59626681]
[1723657729649,0.34930531,59251.0,59250.0,0.630387]
[1723657730142,0.36105321,59256.0,59255.0,0.253083]
[1723657730346,0.36105321,59256.0,59255.0,0.393083]
[1723657730547,0.61426989,59256.0,59255.0,0.393083]
[1723657730938,0.7672431,59256.0,59255.0,0.393083]
[1723657731143,0.93537215,59256.0,59255.0,0.393083]
[1723657731342,0.7672431,59256.0,59255.0,0.393083]
[1723657731540,0.7722431,59256.0,59255.0,0.393083]
[1723657731943,0.64661144,59256.0,59255.0,0.224361]
[1723657732250,0.77624842,59256.0,59255.0,0.23634196]
[1723657733247,0.94464712,59256.0,59255.0,0.23634196]
[1723657733947,0.94464712,59256.0,59255.0,0.32070296]
[1723657733948,0.77624842,59256.0,59255.0,0.32070296]
[1723657734253,0.76724842,59256.0,59255.0,0.40506396]
[1723657734546,0.72959887,59256.0,59255.0,0.40506396]
[1723657734745,0.64958458,59256.0,59255.0,1.31134396]
[1723657734955,0.40907521,59256.0,59255.0,1.67214396]
[1723657735257,0.24485947,59256.0,59255.0,1.67214396]
[1723657735449,0.1101996,59256.0,59255.0,1.67214396]
[1723657736149,0.06890876,59256.0,59255.0,1.67214396]
[1723657736355,0.18669709,59256.0,59255.0,1.67214396]
[1723657737142,0.15412497,59256.0,59255.0,1.18778296]
[1723657737445,0.03633664,59256.0,59255.0,0.68150296]
[1723657738148,0.009,59256.0,59255.0,0.68150296]
[1723657738942,0.00025321,59261.0,59260.0,0.168708]
[1723657739154,0.00025321,59261.0,59260.0,0.88811499]
[1723657739456,0.25472903,59261.0,59260.0,0.460408]
[1723657740363,0.26072903,59261.0,59260.0,0.461408]
[1723657740656,0.26072903,59261.0,59260.0,0.169708]
[1723657740854,0.26072903,59261.0,59260.0,0.085354]
[1723657741252,0.26072903,59261.0,59260.0,0.321594]
[1723657741649,0.26872903,59261.0,59260.0,0.322594]
[1723657742852,0.62952903,59261.0,59260.0,0.322594]
[1723657743251,0.62952903,59261.0,59260.0,0.23824]
[1723657743252,1.00962903,59261.0,59260.0,0.23824]
[1723657743447,1.07692717,59261.0,59260.0,0.23824]
[1723657743651,1.26942717,59261.0,59260.0,0.23824]
[1723657743851,1.20212903,59261.0,59260.0,0.322594]
[1723657744045,1.20212903,59261.0,59260.0,0.23824]
[1723657744251,1.26942717,59261.0,59260.0,0.23824]
[1723657744452,2.19272203,59261.0,59260.0,0.23824]
[1723657744754,2.13571289,59261.0,59253.0,0.084364]
[1723657744950,0.084366,59252.0,59245.0,0.00025321]
[1723657745145,0.3608,59246.0,59245.0,0.08462921]
[1723657745557,0.61270997,59246.0,59245.0,0.08462921]
[1723657746055,0.61270997,59246.0,59245.0,0.09695673]
[1723657746255,0.7657207,59246.0,59245.0,0.06363706]
[1723657746556,0.91715861,59246.0,59245.0,0.05130954]
[1723657746748,0.7657207,59246.0,59245.0,0.007]
[1723657746944,0.7657207,59246.0,59228.0,0.5617]
[1723657746945,0.084376,59245.0,59242.0,0.08438]
[1723657747147,0.084376,59245.0,59243.0,0.084378]
[1723657747148,0.15301882,59244.0,59243.0,0.084378]
[1723657747348,0.4068871,59244.0,59243.0,0.084378]
[1723657747562,1.3132871,59244.0,59243.0,0.084378]
[1723657747866,1.56921824,59244.0,59243.0,0.084378]
[1723657748751,1.56921824,59244.0,59243.0,0.07364419]
[1723657748953,1.56921824,59244.0,59239.0,0.084383]
[1723657749154,0.52664528,59244.0,59243.0,0.01]
[1723657749456,1.04048477,59244.0,59243.0,0.01]
[1723657749760,2.01267255,59244.0,59243.0,0.01]
[1723657750447,2.01267255,59244.0,59240.0,0.084383]
[1723657750448,0.084378,59243.0,59240.0,0.084383]
[1723657750646,0.084381,59241.0,59240.0,0.084383]
[1723657750848,0.14432291,59241.0,59240.0,0.084383]
[1723657751050,0.084383,59240.0,59239.0,0.012]
[1723657751253,0.08439,59235.0,59222.0,0.275308]
[1723657751461,0.3608,59229.0,59222.0,0.275308]
[1723657751750,0.3608,59229.0,59219.0,0.084412]
[1723657751751,1.04159211,59229.0,59228.0,0.0844]
[1723657751953,1.96159155,59229.0,59228.0,0.0844]
[1723657752356,2.11279064,59229.0,59228.0,0.0844]
[1723657752561,1.90979779,59229.0,59228.0,0.0844]
[1723657752755,1.82539979,59229.0,59228.0,0.0844]
[1723657752959,2.02839499,59229.0,59228.0,0.0844]
[1723657753254,1.9615939,59229.0,59228.0,0.1014]
[1723657753462,1.8085422,59229.0,59228.0,0.017]
[1723657753647,1.82071548,59229.0,59228.0,0.017]
[1723657756360,0.8176242,59229.0,59228.0,0.1014]
[1723657757257,0.0960242,59229.0,59228.0,0.3358]
[1723657757561,0.03692851,59229.0,59228.0,0.26337641]
[1723657757755,0.36105321,59234.0,59233.0,0.084393]
[1723657758262,0.6126552,59234.0,59233.0,0.084393]
[1723657759256,0.6176552,59234.0,59233.0,0.085393]
[1723657759760,0.6216552,59234.0,59233.0,0.085393]
[1723657761859,0.68876195,59234.0,59233.0,0.085393]
[1723657762866,0.6216552,59234.0,59233.0,0.085393]
[1723657765366,0.67186479,59234.0,59233.0,0.467993]
[1723657766063,0.6216552,59234.0,59233.0,0.467993]
[1723657766263,0.31108507,59234.0,59233.0,1.628866]
[1723657766470,0.26060199,59234.0,59233.0,1.628866]
[1723657766762,0.05023203,59240.0,59239.0,0.084384]
[1723657766962,0.05023203,59240.0,59239.0,0.696828]
[1723657767163,0.06693781,59243.0,59240.0,0.084383]
[1723657767359,0.06693781,59244.0,59243.0,0.084378]
[1723657767559,0.06693781,59244.0,59240.0,0.084383]
[1723657767560,0.08388343,59248.0,59245.0,0.084376]
[1723657767970,0.61320953,59246.0,59245.0,0.084376]
[1723657770065,0.61320953,59246.0,59245.0,0.086376]
[1723657770468,0.61320953,59246.0,59245.0,0.091376]
[1723657771365,0.61320953,59246.0,59245.0,0.090376]
[1723657771568,0.25240953,59246.0,59245.0,0.60098476]
[1723657771769,0.3608,59255.0,59254.0,0.168726]
[1723657772067,0.3801,59271.0,59254.0,0.168726]
[1723657772068,0.3608,59268.0,59265.0,0.084346]
[1723657772265,0.3608,59266.0,59265.0,0.084346]
[1723657772659,0.56422321,59266.0,59265.0,0.084346]
[1723657773267,0.56422321,59266.0,59265.0,0.085346]
[1723657774072,0.084353,59262.0,59260.0,0.00025321]
[1723657774375,0.3608,59261.0,59260.0,0.08460721]
[1723657774565,0.61385561,59261.0,59260.0,0.08460721]
[1723657775569,0.64119857,59261.0,59260.0,0.08460721]
[1723657775773,0.74185869,59261.0,59260.0,0.08460721]
[1723657775963,0.64119857,59261.0,59260.0,0.08460721]
[1723657776570,0.74185978,59261.0,59260.0,0.08460721]
[1723657777267,0.75585978,59261.0,59260.0,0.08560721]
[1723657777569,0.65519966,59261.0,59260.0,0.08560721]
[1723657777772,0.84021278,59261.0,59260.0,0.00125321]
[1723657777977,0.084358,59258.0,59256.0,0.084359]
[1723657778169,0.12800528,59257.0,59254.0,0.084362]
[1723657778474,0.084365,59253.0,59252.0,0.084363]
[1723657778772,0.52910952,59253.0,59252.0,0.084363]
[1723657778964,1.68852431,59253.0,59252.0,0.084363]
[1723657779163,0.08437,59249.0,59248.0,0.084369]
[1723657779671,0.364814,59249.0,59248.0,0.084369]
[1723657780773,0.36481468,59249.0,59248.0,0.084369]
[1723657781476,0.42140389,59249.0,59248.0,0.084369]
[1723657781667,0.33703389,59249.0,59248.0,0.084369]
[1723657781863,0.25309479,59249.0,59248.0,0.084369]
[1723657782271,0.4447391,59251.0,59250.0,0.084369]
[1723657782668,0.69772927,59251.0,59250.0,0.084369]
[1723657783478,0.64113909,59251.0,59250.0,0.084369]
[1723657783675,0.76980419,59251.0,59250.0,0.084369]
[1723657784071,0.77480419,59251.0,59250.0,0.084369]
[1723657784679,0.77580419,59251.0,59250.0,0.085369]
[1723657785575,0.92706153,59251.0,59250.0,0.085369]
[1723657785773,0.77580419,59251.0,59250.0,0.085369]
[1723657786668,0.81338286,59251.0,59250.0,0.085369]
[1723657786872,0.77479978,59251.0,59250.0,0.085369]
[1723657787274,0.76679978,59251.0,59250.0,0.085369]
[1723657787473,0.77079526,59251.0,59250.0,0.085369]
[1723657787983,0.76679526,59251.0,59250.0,0.085369]
[1723657788476,0.77379526,59251.0,59250.0,0.085369]
[1723657788682,0.77379526,59251.0,59250.0,0.07560483]
[1723657789578,1.93264158,59251.0,59250.0,0.001]
[1723657789772,1.74079997,59251.0,59247.0,0.00025321]
[1723657789973,0.084371,59248.0,59247.0,0.00025321]
[1723657790178,0.18560383,59248.0,59247.0,0.00025321]
[1723657790482,0.49182363,59248.0,59247.0,0.08458621]
[1723657790681,0.84517854,59248.0,59247.0,0.00021321]
[1723657791683,0.89565418,59248.0,59247.0,0.00021321]
[1723657791882,0.84517854,59248.0,59247.0,0.00021321]
[1723657792880,0.91646595,59248.0,59247.0,0.00021321]
[1723657793080,0.85217854,59248.0,59247.0,0.00021321]
[1723657793386,0.84817854,59248.0,59247.0,0.08458621]
[1723657793690,0.92146595,59248.0,59247.0,0.08458621]
[1723657793875,0.9215177,59248.0,59247.0,0.08458621]
[1723657794281,0.93340116,59248.0,59247.0,0.08458621]
[1723657794480,0.866062,59248.0,59247.0,0.08458621]
[1723657794679,0.42704116,59248.0,59247.0,0.08458621]
[1723657794984,0.866062,59248.0,59247.0,0.08458621]
[1723657795182,0.359702,59248.0,59247.0,0.08458621]
[1723657795376,0.93740116,59248.0,59247.0,0.08558621]
[1723657795577,0.34667016,59248.0,59247.0,0.08558621]
[1723657795777,0.31797773,59248.0,59247.0,0.08558621]
[1723657796277,0.26744754,59248.0,59247.0,0.08558621]
[1723657796482,0.31797773,59248.0,59247.0,0.08558621]
[1723657797079,0.31797773,59248.0,59247.0,0.08458621]
[1723657797080,0.31097773,59248.0,59247.0,0.08458621]
[1723657797385,0.26744754,59248.0,59247.0,0.09729667]
[1723657797883,0.26744754,59248.0,59247.0,0.08558621]
[1723657798892,0.26144754,59248.0,59247.0,0.08958621]
[1723657799279,0.25444754,59248.0,59247.0,0.08858621]
[1723657799585,0.38934873,59248.0,59247.0,0.00421321]
[1723657799778,0.13490119,59248.0,59247.0,0.00421321]
[1723657799978,0.084371,59248.0,59247.0,0.00421321]
[1723657800187,0.33627748,59248.0,59247.0,0.00221321]
[1723657800390,0.25390648,59248.0,59247.0,0.08658621]
[1723657800685,0.30544109,59248.0,59247.0,0.08458621]
[1723657800883,0.31713541,59248.0,59247.0,0.08458621]
[1723657801082,0.2736008,59248.0,59247.0,0.13593742]
[1723657801493,0.2726008,59248.0,59247.0,0.13593742]
[1723657801684,0.2656008,59248.0,59247.0,0.13493742]
[1723657801885,0.3499718,59248.0,59247.0,0.13493742]
[1723657802075,0.25390648,59248.0,59247.0,0.13493742]
[1723657802281,0.25390648,59248.0,59247.0,0.1514932]
[1723657802582,0.26190648,59248.0,59247.0,0.08558621]
[1723657802791,0.25990648,59248.0,59247.0,0.08558621]
[1723657802988,0.25990648,59248.0,59247.0,0.16931329]
[1723657803285,0.25990648,59248.0,59247.0,0.29885321]
[1723657803482,0.26790648,59248.0,59247.0,0.29885321]
[1723657803684,0.26790648,59248.0,59247.0,0.17031329]
[1723657803885,0.26790648,59248.0,59247.0,0.08658621]
[1723657804089,0.27490648,59248.0,59247.0,0.17131329]
[1723657804781,0.27590648,59248.0,59247.0,0.08758621]
[1723657804982,0.27590648,59248.0,59247.0,0.18301483]
[1723657805187,0.26790648,59248.0,59247.0,0.10228775]
[1723657805382,0.26790648,59248.0,59247.0,0.09058621]
[1723657805681,0.31844109,59248.0,59247.0,0.00621321]
[1723657805890,0.42092578,59248.0,59247.0,0.06716018]
[1723657806489,0.41392578,59248.0,59247.0,0.06716018]
[1723657806683,0.49829778,59248.0,59247.0,0.06716018]
[1723657807193,0.48929778,59248.0,59247.0,0.06716018]
[1723657807486,0.48929778,59248.0,59247.0,0.06816018]
[1723657808284,0.48929778,59248.0,59247.0,0.06716018]
[1723657808694,0.49029778,59248.0,59247.0,0.06716018]
[1723657808892,0.49029778,59248.0,59247.0,0.15153318]
[1723657809987,0.40592578,59248.0,59247.0,0.15153318]
[1723657810188,0.40592578,59248.0,59247.0,0.23590618]
[1723657810400,0.40592578,59248.0,59247.0,0.40590618]
[1723657810891,0.40592578,59248.0,59247.0,1.60396618]
[1723657811093,0.57448203,59248.0,59247.0,1.68833918]
[1723657811297,0.40592578,59248.0,59247.0,1.87823918]
[1723657811495,0.56356707,59248.0,59247.0,1.87923918]
[1723657811693,0.16855625,59252.0,59247.0,1.87923918]
[1723657811694,0.16855625,59252.0,59251.0,0.168736]
[1723657811897,0.09172771,59252.0,59251.0,0.393104]
[1723657812087,0.30348128,59252.0,59251.0,1.215056]
[1723657812395,0.30348128,59252.0,59251.0,1.299424]
[1723657812396,0.25375357,59252.0,59251.0,1.299424]
[1723657812781,0.15162864,59255.0,59251.0,1.299424]
[1723657812782,0.15162864,59254.0,59253.0,0.16873]
[1723657812982,0.40399041,59254.0,59253.0,0.91535143]
[1723657813289,0.40399041,59254.0,59253.0,1.82163143]
[1723657813490,0.15162864,59254.0,59253.0,1.6652168]
[1723657813892,0.40419226,59254.0,59253.0,1.82163233]
[1723657814290,0.40419226,59254.0,59253.0,1.6652168]
[1723657814497,0.40419226,59254.0,59253.0,1.36576848]
[1723657814498,0.40919226,59254.0,59253.0,1.36576848]
[1723657815496,0.40919226,59254.0,59253.0,1.76576848]
[1723657815690,0.39667017,59254.0,59253.0,1.77743076]
[1723657816395,0.39667017,59254.0,59253.0,1.67687908]
[1723657816792,0.39667017,59254.0,59253.0,1.27688022]
[1723657816994,0.39667017,59254.0,59253.0,1.67688022]
[1723657818391,0.39667017,59254.0,59253.0,0.22453522]
[1723657818793,0.39667017,59254.0,59253.0,0.51623522]
[1723657818990,0.39667017,59254.0,59253.0,0.51623613]
[1723657820300,0.39667017,59254.0,59253.0,1.19251613]
[1723657820501,0.35932617,59254.0,59253.0,1.19251613]
[1723657820797,0.30620617,59254.0,59253.0,1.67688113]
[1723657821202,0.30620617,59254.0,59253.0,1.67688073]
[1723657821702,0.08839655,59254.0,59253.0,2.12204573]
[1723657821896,0.16855625,59257.0,59256.0,0.25308]
[1723657822097,0.13986093,59257.0,59256.0,1.1886202]
[1723657822401,0.13086093,59257.0,59256.0,1.99447769]
[1723657822696,0.13086093,59257.0,59256.0,2.09486076]
[1723657822896,0.00025321,59258.0,59256.0,1.92614076]
[1723657823199,0.00025321,59258.0,59257.0,0.29722645]
[1723657823402,0.00025321,59258.0,59257.0,0.46722645]
[1723657823602,0.00025321,59258.0,59257.0,0.97350645]
[1723657824393,0.3608,59270.0,59266.0,0.084346]
[1723657824800,0.61382848,59267.0,59266.0,0.084346]
[1723657825396,0.61382848,59267.0,59266.0,0.817292]
[1723657825900,0.61382848,59267.0,59266.0,0.732946]
[1723657826095,0.61382848,59267.0,59266.0,0.817292]
[1723657826398,0.26202848,59267.0,59266.0,0.902638]
[1723657826605,0.36105321,59272.0,59271.0,0.168678]
[1723657826809,0.00025321,59272.0,59271.0,0.168678]
[1723657827106,0.25298506,59272.0,59271.0,0.23561294]
[1723657827294,0.25298506,59272.0,59271.0,0.168678]
[1723657827500,0.25298506,59272.0,59271.0,0.23557533]
[1723657827698,0.23939029,59272.0,59271.0,0.759177]
[1723657827899,0.20372506,59272.0,59271.0,0.899177]
[1723657828104,0.20372506,59272.0,59271.0,1.11133158]
[1723657828300,0.20372506,59272.0,59271.0,1.02863741]
[1723657828301,0.20672506,59272.0,59271.0,1.02863741]
[1723657828504,0.20672506,59272.0,59271.0,0.900177]
[1723657829502,0.19745506,59272.0,59271.0,0.900177]
[1723657829898,0.15913506,59272.0,59271.0,0.9086832]
[1723657830299,0.15913506,59272.0,59271.0,0.4025232]
[1723657831504,0.15913506,59272.0,59271.0,0.2348452]
[1723657831694,0.15913506,59272.0,59271.0,0.0958452]
[1723657832410,0.15913506,59272.0,59271.0,0.2558452]
[1723657832817,0.15913506,59272.0,59271.0,0.0958452]
[1723657833109,0.15913506,59272.0,59271.0,0.087339]
[1723657834003,0.15913506,59272.0,59271.0,0.13749329]
[1723657834307,0.15913506,59272.0,59271.0,0.37183229]
[1723657834511,0.15913506,59272.0,59271.0,0.321678]
[1723657834909,0.01130326,59272.0,59271.0,1.438538]
[1723657835206,0.01130326,59272.0,59271.0,1.522877]
[1723657835401,0.01130326,59272.0,59271.0,1.56699607]
[1723657835795,0.01130326,59272.0,59271.0,1.65053047]
[1723657836108,0.01130326,59272.0,59271.0,1.438538]
[1723657836308,0.01130326,59272.0,59271.0,0.532378]
[1723657836504,0.01130326,59272.0,59271.0,0.321678]
[1723657837714,0.01130326,59272.0,59271.0,0.237339]
[1723657838415,0.01130326,59272.0,59271.0,0.087339]
[1723657839501,0.01130326,59272.0,59271.0,0.003]
[1723657840003,1.00180126,59272.0,59271.0,0.003]
[1723657840205,0.96797506,59272.0,59265.0,0.084346]
[1723657840403,0.3608,59266.0,59265.0,0.084346]
[1723657840813,0.61510897,59266.0,59265.0,0.084346]
[1723657841415,0.66562077,59266.0,59265.0,0.084346]
[1723657842215,0.66562077,59266.0,59261.0,0.00025321]
[1723657842412,0.0505118,59264.0,59261.0,0.00025321]
[1723657842613,0.2629118,59263.0,59261.0,0.00025321]
[1723657842805,0.590592,59262.0,59261.0,0.00025321]
[1723657843006,0.90624,59262.0,59256.0,0.23628]
[1723657843314,0.445159,59257.0,59253.0,0.05012091]
[1723657843514,0.445159,59257.0,59241.0,0.10038307]
[1723657843515,0.3608,59255.0,59254.0,0.084363]
[1723657844016,0.61416261,59255.0,59254.0,0.084363]
[1723657844911,1.12044261,59255.0,59254.0,0.084363]
[1723657845330,0.61416261,59255.0,59254.0,0.084363]
[1723657845510,0.61416261,59255.0,59254.0,0.086363]
[1723657847021,0.97496261,59255.0,59254.0,0.086363]
[1723657847925,0.61416261,59255.0,59254.0,0.086363]
[1723657848112,0.61416261,59255.0,59254.0,0.15119088]
[1723657848312,0.55509706,59255.0,59254.0,0.084363]
[1723657848513,0.55509706,59255.0,59254.0,0.09585961]
[1723657848709,0.55509706,59255.0,59254.0,0.16287135]
[1723657848919,0.55509706,59255.0,59254.0,0.09585961]
[1723657849122,0.55809706,59255.0,59254.0,0.09585961]
[1723657849510,0.55809706,59255.0,59254.0,0.16287135]
[1723657849922,0.55909706,59255.0,59254.0,0.09585961]
[1723657850312,0.55909706,59255.0,59254.0,0.16287135]
[1723657850707,0.55909706,59255.0,59254.0,0.09585961]
[1723657851107,0.55809706,59255.0,59254.0,0.09585961]
[1723657851316,0.19729706,59255.0,59254.0,0.09885961]
[1723657851716,0.19729706,59255.0,59254.0,0.16587135]
[1723657851914,0.19729706,59255.0,59254.0,0.10085961]
[1723657851915,0.19429706,59255.0,59254.0,0.10085961]
[1723657852220,0.19429706,59255.0,59254.0,0.005]
[1723657852724,1.10057706,59255.0,59254.0,0.005]
[1723657853315,1.10057706,59255.0,59254.0,0.002]
[1723657853923,1.18493906,59255.0,59254.0,0.002]
[1723657854218,1.18493906,59255.0,59254.0,0.003]
[1723657854620,1.18893906,59255.0,59254.0,0.003]
[1723657855017,1.18893906,59255.0,59254.0,0.001]
[1723657856019,1.19393906,59255.0,59254.0,0.001]
[1723657857322,0.79393906,59255.0,59254.0,0.001]
[1723657858015,0.79393906,59255.0,59254.0,0.085363]
[1723657862724,0.084369,59250.0,59249.0,0.00025321]
[1723657862929,0.084375,59246.0,59245.0,0.084375]
[1723657863324,0.3384475,59246.0,59245.0,0.084375]
[1723657863624,0.3384475,59246.0,59241.0,0.08438]
[1723657863625,0.7604325,59246.0,59241.0,0.08438]
[1723657863824,0.44518,59242.0,59241.0,0.08438]
[1723657864324,0.6997359,59242.0,59241.0,0.08438]
[1723657864828,0.6153559,59242.0,59241.0,0.08438]
[1723657865629,0.6153559,59242.0,59241.0,0.09538]
[1723657865830,0.6153559,59242.0,59238.0,0.00025321]
[1723657865831,0.084382,59241.0,59238.0,0.00025321]
[1723657866127,0.084388,59237.0,59236.0,0.084389]
[1723657866434,0.445188,59237.0,59236.0,0.084389]
[1723657866732,0.69830968,59237.0,59236.0,0.084389]
[1723657867426,0.69930968,59237.0,59236.0,0.097389]
[1723657868128,0.70030968,59237.0,59236.0,0.111389]
[1723657873233,0.70030968,59237.0,59236.0,0.027]
[1723657873733,0.99200968,59237.0,59236.0,0.027]
[1723657873927,0.084394,59232.0,59231.0,0.05051605]
[1723657874130,1.0525,59232.0,59224.0,0.13480889]
[1723657874331,0.084409,59222.0,59220.0,0.05040389]
[1723657874531,0.084409,59222.0,59221.0,0.08441]
[1723657874738,0.445209,59222.0,59221.0,0.08441]
[1723657875030,0.69707892,59222.0,59221.0,0.08441]
[1723657875729,0.69807892,59222.0,59221.0,0.08441]
[1723657877726,0.69907892,59222.0,59221.0,0.08441]
[1723657877927,0.71090358,59222.0,59221.0,0.08441]
[1723657878123,0.62649458,59222.0,59221.0,0.08441]
[1723657878534,0.61466992,59222.0,59221.0,0.08441]
[1723657879935,0.084413,59219.0,59218.0,0.08454902]